bitfinex/quotes_ETHUSD_20250110
["timestamp","ask_amount","ask_price","bid_price","bid_amount"]
[1736501799996,3.01988,3311.4,3311.1,0.22]
[1736501800192,3.01988,3311.4,3311.3,0.08702604]
[1736501800397,3.01988,3311.4,3311.0,0.22]
[1736501800619,3.01988,3311.4,3311.3,0.08702604]
[1736501800816,3.01988,3311.4,3311.0,0.22]
[1736501801101,5.24151318,3311.6,3311.0,0.22]
[1736501801327,5.24151318,3311.6,3311.1,0.08719642]
[1736501801526,0.7593,3311.7,3311.1,0.08719642]
[1736501801734,3.01978,3311.5,3311.1,0.08719642]
[1736501802081,3.01962,3311.7,3311.1,0.08719642]
[1736501804371,5.22179318,3311.9,3311.1,0.08719642]
[1736501804539,3.01978,3311.5,3311.1,0.08719642]
[1736501808365,3.01978,3311.5,3311.2,0.22]
[1736501811892,3.01964,3311.7,3311.2,0.22]
[1736501812180,6.01943,3311.9,3311.2,0.22]
[1736501812379,6.01943,3311.9,3311.3,0.11768561]
[1736501812537,5.37,3312.0,3311.3,0.03019723]
[1736501813272,5.37,3312.0,3311.2,0.22]
[1736501813273,5.37,3312.0,3311.2,3.23997]
[1736501813576,5.37,3312.0,3311.3,0.41159968]
[1736501813885,3.01945,3311.9,3311.4,0.22]
[1736501814043,3.01945,3311.9,3311.4,0.30757983]
[1736501814250,3.01945,3311.9,3311.4,0.22]
[1736501814578,5.24124318,3311.9,3311.4,0.22]
[1736501815353,0.762,3311.8,3311.4,0.22]
[1736501815553,3.01977,3311.5,3311.4,0.22]
[1736501816282,0.762,3311.8,3311.4,0.22]
[1736501816463,3.01962,3311.7,3311.4,0.22]
[1736501818483,3.01944,3311.9,3311.4,0.22]
[1736501819462,5.24123318,3311.9,3311.4,0.22]
[1736501819668,3.0197,3311.6,3311.4,0.22]
[1736501820589,3.01977,3311.5,3311.4,0.22]
[1736501822686,3.01977,3311.5,3311.2,0.22]
[1736501823086,2.22179318,3311.6,3311.3,0.08741566]
[1736501823498,2.22179318,3311.6,3311.2,0.22]
[1736501823870,3.01979,3311.5,3311.3,0.08741566]
[1736501824257,3.01979,3311.5,3311.2,0.22]
[1736501824662,3.01979,3311.5,3311.3,0.08741566]
[1736501825064,3.01979,3311.5,3311.2,0.22]
[1736501825459,3.01979,3311.5,3311.3,0.08741566]
[1736501825759,3.01979,3311.5,3311.2,0.22]
[1736501825996,3.01979,3311.5,3311.3,0.08741566]
[1736501826192,3.01979,3311.5,3311.2,0.22]
[1736501826392,3.01979,3311.5,3311.3,0.08741566]
[1736501826597,3.01979,3311.5,3311.2,0.22]
[1736501826803,3.01979,3311.5,3311.3,0.08741566]
[1736501827395,3.01979,3311.5,3311.2,0.22]
[1736501827571,3.01979,3311.5,3311.3,0.08741566]
[1736501827776,3.01979,3311.5,3311.2,0.22]
[1736501827974,3.01979,3311.5,3311.3,0.08741566]
[1736501828163,3.01979,3311.5,3311.2,0.22]
[1736501828364,3.01979,3311.5,3311.3,0.08741566]
[1736501828564,3.01979,3311.5,3311.2,0.22]
[1736501828980,3.01979,3311.5,3311.3,0.08741566]
[1736501829297,3.01979,3311.5,3311.2,0.22]
[1736501829795,3.01979,3311.5,3310.6,5.03979268]
[1736501829796,3.01987,3311.4,3311.3,0.08741566]
[1736501829996,3.01987,3311.4,3310.6,5.03979268]
[1736501829997,2.99079318,3311.4,3311.0,0.22]
[1736501830223,3.02007,3311.2,3311.1,0.08747174]
[1736501830816,6.01070318,3311.4,3311.1,0.08747174]
[1736501831024,3.01991,3311.4,3311.1,0.08747174]
[1736501831160,3.01991,3311.4,3311.0,0.22]
[1736501831161,2.22179318,3311.7,3311.0,0.22]
[1736501831360,3.01995,3311.4,3311.1,0.08758085]
[1736501831618,3.01995,3311.4,3311.0,0.22]
[1736501832028,3.01995,3311.4,3311.1,0.08758085]
[1736501832299,3.01997,3311.3,3311.1,0.08758085]
[1736501832459,2.22179318,3311.7,3311.0,0.22]
[1736501832665,3.0199,3311.4,3311.0,0.22]
[1736501832864,3.0199,3311.4,3311.1,0.08758085]
[1736501834198,3.02003,3311.3,3311.1,0.08758085]
[1736501834413,3.02003,3311.3,3311.0,0.22]
[1736501834929,3.02003,3311.3,3311.1,0.08758085]
[1736501835429,3.01961,3311.7,3311.1,0.08758085]
[1736501835583,5.37,3311.9,3311.1,0.11777901]
[1736501835775,3.78498,3312.3,3311.2,0.3357979]
[1736501835968,3.01906,3312.3,3311.3,0.08752475]
[1736501836166,3.01914,3312.2,3311.3,0.08752475]
[1736501836367,2.22179318,3312.2,3311.3,0.08752475]
[1736501836562,3.0195,3311.8,3311.3,0.08752475]
[1736501836822,3.01961,3311.7,3311.1,5.03979268]
[1736501837024,3.01985,3311.5,3311.4,0.08732526]
[1736501837326,3.01985,3311.5,3311.0,0.22]
[1736501837488,3.01959318,3311.6,3311.0,0.22]
[1736501837818,3.01959318,3311.6,3311.1,0.08730031]
[1736501838019,2.22179318,3311.6,3311.1,0.08730031]
[1736501838958,3.01984,3311.5,3311.1,0.08730031]
[1736501839520,3.01997,3311.3,3311.1,0.08730031]
[1736501839698,3.02005,3311.2,3311.1,0.08730031]
[1736501839862,3.02005,3311.2,3311.0,0.22]
[1736501840289,3.02005,3311.2,3311.1,0.08750811]
[1736501840667,2.22179318,3311.3,3311.0,0.22]
[1736501840668,3.02014,3311.1,3311.0,0.22]
[1736501841300,3.02014,3311.1,3311.0,0.30754135]
[1736501841802,3.02014,3311.1,3311.0,0.08754135]
[1736501842005,0.7594,3311.0,3310.6,0.219]
[1736501842175,6.00144318,3311.0,3310.7,0.08780736]
[1736501842770,2.98119318,3311.0,3309.7,5.03979268]
[1736501843103,3.02062,3310.6,3309.8,1.11099241]
[1736501843894,3.0205,3310.8,3309.8,1.11099241]
[1736501844293,3.0205,3310.8,3309.9,0.03020746]
[1736501844485,3.0205,3310.8,3309.9,0.11855111]
[1736501844785,6.00145318,3311.0,3309.9,3.13978111]
[1736501845106,6.00145318,3311.0,3310.0,0.41627604]
[1736501845286,6.00145318,3311.0,3310.1,0.03020745]
[1736501845471,6.00145318,3311.0,3310.1,0.11851056]
[1736501846005,3.02032,3310.9,3310.1,0.11851056]
[1736501847374,5.37,3311.2,3310.1,0.11851056]
[1736501848794,5.37,3311.2,3310.3,3.02084]
[1736501849103,5.37,3311.2,3310.5,3.02068]
[1736501849485,5.37,3311.2,3310.6,0.11839122]
[1736501849802,5.37,3311.2,3310.7,0.219]
[1736501850006,5.37,3311.2,3310.8,0.08814307]
[1736501850372,3.01954,3311.8,3310.8,3.0204]
[1736501850573,3.01954,3311.8,3310.9,0.08792792]
[1736501851002,3.0,3311.7,3310.9,0.08792792]
[1736501851222,3.0,3311.5,3310.9,0.08792792]
[1736501851711,3.01984,3311.5,3310.9,0.08792792]
[1736501852075,3.01984,3311.5,3310.7,0.219]
[1736501852378,3.01984,3311.5,3310.7,1.07714858]
[1736501852569,3.01984,3311.5,3310.8,0.08790401]
[1736501852771,3.01971,3311.6,3310.8,0.08790401]
[1736501853877,3.0198,3311.5,3310.8,0.08790401]
[1736501854075,2.22179318,3311.6,3310.8,0.08790401]
[1736501854712,2.22179318,3311.6,3310.8,0.1181049]
[1736501855206,3.01987,3311.4,3310.8,0.08790401]
[1736501855810,5.24150318,3311.6,3310.8,0.08790401]
[1736501855983,5.24150318,3311.6,3310.8,0.11810493]
[1736501856807,3.01979,3311.5,3310.8,0.11810493]
[1736501857110,2.22179318,3311.6,3310.8,0.08790401]
[1736501857306,3.01987,3311.4,3310.8,0.08790401]
[1736501857508,3.01987,3311.4,3310.8,0.11810492]
[1736501857930,3.01987,3311.4,3310.8,0.08790401]
[1736501858714,5.24148318,3311.6,3310.8,0.11810493]
[1736501859520,5.24148318,3311.6,3310.8,0.45387442]
[1736501860620,3.01934,3312.0,3310.8,0.45387444]
[1736501860822,3.01934,3312.0,3310.8,0.1181016]
[1736501861871,7.59179318,3312.2,3311.1,3.02013]
[1736501862034,10.61093318,3312.2,3311.2,0.03019527]
[1736501862231,10.61093318,3312.2,3311.2,0.1178312]
[1736501862563,5.24069318,3312.5,3311.3,3.0]
[1736501862786,2.22179318,3312.5,3311.6,3.01968]
[1736501862930,2.22179318,3312.5,3311.7,0.219]
[1736501863131,0.8259,3312.4,3311.7,0.30599178]
[1736501863329,2.22179318,3312.2,3311.7,0.30599178]
[1736501863762,2.22179318,3312.2,3311.7,0.219]
[1736501864371,5.24093318,3312.2,3311.7,0.219]
[1736501866947,5.24093318,3312.2,3311.8,0.08684948]
[1736501867474,5.24093318,3312.2,3311.7,0.219]
[1736501867674,3.01903,3312.4,3311.9,0.08682664]
[1736501867847,3.01903,3312.4,3311.7,0.219]
[1736501868048,3.01906,3312.3,3312.0,0.08680379]
[1736501868368,3.01906,3312.3,3311.7,0.219]
[1736501868760,3.01906,3312.3,3311.8,0.08684948]
[1736501868960,2.22179318,3312.2,3311.8,0.08684948]
[1736501869180,2.22179318,3312.2,3311.7,0.219]
[1736501869562,2.22179318,3312.2,3311.8,0.08684948]
[1736501869949,2.22179318,3312.2,3311.7,0.219]
[1736501870374,5.24094318,3312.2,3311.8,0.08684948]
[1736501870881,5.24094318,3312.2,3311.9,0.08682664]
[1736501871091,5.24094318,3312.2,3311.7,0.219]
[1736501871259,5.24094318,3312.2,3312.0,0.08680379]
[1736501871465,5.24094318,3312.2,3311.7,0.219]
[1736501871666,5.24094318,3312.2,3312.1,0.08678095]
[1736501871849,5.24094318,3312.2,3311.7,0.219]
[1736501872047,5.24094318,3312.2,3312.1,0.08678095]
[1736501872251,5.24094318,3312.2,3311.7,0.219]
[1736501872488,5.24094318,3312.2,3312.1,0.08678095]
[1736501872818,3.01915,3312.2,3311.7,0.219]
[1736501872988,2.22179318,3312.5,3311.7,0.219]
[1736501873281,3.01897,3312.4,3311.8,0.08684948]
[1736501873489,3.01897,3312.4,3311.7,0.219]
[1736501873689,3.01897,3312.4,3311.9,0.08682664]
[1736501873855,3.01897,3312.4,3311.7,0.219]
[1736501874180,3.01897,3312.4,3312.0,0.08661163]
[1736501874384,3.01897,3312.4,3311.7,0.219]
[1736501874587,3.01905,3312.3,3311.7,0.219]
[1736501874758,3.01905,3312.3,3311.8,0.08665731]
[1736501875286,3.01905,3312.3,3311.7,0.219]
[1736501875584,3.01905,3312.3,3311.9,0.08663447]
[1736501875786,3.01905,3312.3,3311.8,0.08665731]
[1736501875979,3.01905,3312.3,3311.7,0.219]
[1736501876296,2.22179318,3312.5,3311.8,0.08665731]
[1736501876619,5.24067318,3312.5,3311.7,0.219]
[1736501876910,5.24067318,3312.5,3311.8,0.08660538]
[1736501877105,5.24067318,3312.5,3311.7,0.219]
[1736501877295,5.24067318,3312.5,3311.9,0.08658253]
[1736501877606,5.24042318,3312.8,3311.8,3.01947]
[1736501877817,3.0,3312.7,3311.9,0.323847]
[1736501877972,3.0,3312.7,3311.9,0.41042953]
[1736501878373,3.01879,3312.6,3311.9,0.08658253]
[1736501878572,3.01879,3312.6,3311.7,0.219]
[1736501879011,3.01879,3312.6,3311.8,0.08660538]
[1736501879173,3.0,3312.5,3311.8,0.08660538]
[1736501880277,3.01886,3312.5,3311.8,0.08660538]
[1736501881315,3.0,3312.6,3311.8,0.11679685]
[1736501881810,6.01878,3312.6,3311.9,0.33553669]
[1736501882118,2.22179318,3312.8,3312.0,0.08655969]
[1736501882119,3.01891,3312.5,3312.0,0.08655969]
[1736501882318,3.01891,3312.5,3311.7,0.219]
[1736501882478,3.01896,3312.4,3312.1,0.08653685]
[1736501882683,3.01896,3312.4,3311.7,0.219]
[1736501882887,3.01896,3312.4,3312.2,0.08651401]
[1736501883186,3.01896,3312.4,3311.7,0.219]
[1736501883403,5.22179318,3312.8,3311.8,0.03019148]
[1736501883404,3.0188,3312.6,3311.8,0.03019148]
[1736501883712,3.0188,3312.6,3311.8,0.08660538]
[1736501884510,3.01887,3312.5,3311.8,0.08660538]
[1736501884897,2.22179318,3313.1,3311.8,5.15658954]
[1736501885198,3.01854,3312.9,3311.9,3.01934]
[1736501885403,3.01854,3312.9,3312.0,0.81759295]
[1736501885711,3.01854,3312.9,3312.0,0.90367493]
[1736501887416,3.01854,3312.9,3312.1,0.03018784]
[1736501887604,2.22179318,3313.1,3312.1,0.03018784]
[1736501887605,8.24013318,3313.1,3312.1,0.03018784]
[1736501887808,6.01834,3313.1,3312.2,0.08592728]
[1736501888033,6.01834,3313.1,3312.2,0.48123009]
[1736501888842,5.37,3313.5,3312.3,0.03018775]
[1736501889016,3.01822,3313.3,3312.3,3.01901]
[1736501889217,3.0,3313.2,3312.4,0.08587642]
[1736501889544,3.0,3313.2,3312.5,0.31048864]
[1736501889721,3.0,3313.2,3312.6,0.219]
[1736501889926,3.0,3313.2,3312.6,0.30483075]
[1736501890241,5.23972318,3313.6,3312.6,0.33501549]
[1736501890242,3.01798,3313.5,3312.6,0.33501549]
[1736501890445,3.0,3313.4,3312.6,0.33501549]
[1736501890646,6.01805,3313.4,3312.6,0.33501549]
[1736501890944,6.01805,3313.4,3312.6,0.30483075]
[1736501891149,6.01805,3313.4,3312.6,0.66825569]
[1736501891532,6.01805,3313.4,3312.6,0.69843971]
[1736501891841,3.01788,3313.6,3312.6,0.69843971]
[1736501892040,3.01788,3313.6,3312.6,3.68696569]
[1736501892261,0.821,3313.9,3312.6,0.66825569]
[1736501892549,5.23941318,3313.9,3312.8,3.01852]
[1736501892845,3.01771,3313.8,3312.8,3.01852]
[1736501893253,3.01771,3313.8,3312.9,0.08554426]
[1736501893949,3.01778,3313.7,3312.9,0.08554426]
[1736501894443,3.01778,3313.7,3313.0,0.219]
[1736501894810,3.01778,3313.7,3313.1,0.08549861]
[1736501896849,5.23941318,3313.9,3313.1,0.08549861]
[1736501897050,3.01768,3313.8,3313.1,0.08549861]
[1736501901166,2.22179318,3313.9,3313.1,0.08549861]
[1736501901681,5.23939318,3313.9,3313.1,0.41779447]
[1736501902072,2.22179318,3313.9,3313.1,0.41779447]
[1736501902247,3.01771,3313.8,3313.1,0.08549861]
[1736501902446,2.22179318,3313.9,3313.1,0.11567903]
[1736501903097,2.22179318,3313.9,3313.1,0.08549861]
[1736501904098,5.23941318,3313.9,3313.1,0.08549861]
[1736501912065,5.37,3314.3,3313.1,0.08549861]
[1736501912327,3.0175,3314.0,3313.1,0.4208075]
[1736501913687,3.0175,3314.0,3313.1,3.4391175]
[1736501913930,3.01741,3314.1,3313.1,3.4391175]
[1736501914587,3.01741,3314.1,3313.2,0.03017962]
[1736501914801,3.01741,3314.1,3313.2,3.13332044]
[1736501915009,5.22179318,3314.2,3313.3,0.34686293]
[1736501915523,8.23912318,3314.2,3313.4,0.08460497]
[1736501916417,3.01741,3314.1,3313.4,0.08460497]
[1736501917730,3.01741,3314.1,3313.5,0.219]
[1736501918145,3.01741,3314.1,3313.5,0.30354583]
[1736501921687,3.01751,3314.0,3313.5,0.30354583]
[1736501925017,8.23918318,3314.2,3313.5,0.30354583]
[1736501925214,5.22179318,3314.2,3313.5,0.30354583]
[1736501926157,3.01752,3314.0,3313.5,0.30354583]
[1736501928145,3.01744,3314.1,3313.5,0.30354583]
[1736501929712,5.22179318,3314.2,3313.5,0.30354583]
[1736501929713,3.0175,3314.0,3313.5,0.30354583]
[1736501929913,3.01763,3313.9,3313.5,0.30354583]
[1736501933851,6.01727,3314.3,3313.5,0.30354583]
[1736501934051,3.01745,3314.1,3313.5,0.30354583]
[1736501935137,3.0176,3313.9,3313.5,0.30354583]
[1736501937623,3.0176,3313.9,3313.6,0.219]
[1736501937823,3.0176,3313.9,3313.6,0.30051194]
[1736501938122,3.0176,3313.9,3313.6,0.219]
[1736501938854,3.0174,3314.2,3313.6,0.219]
[1736501939062,3.01741,3314.1,3313.6,0.219]
[1736501939553,4.06854581,3314.1,3313.6,0.219]
[1736501940660,3.01752,3314.0,3313.6,0.219]
[1736501941225,1.05113581,3313.9,3313.6,0.219]
[1736501941428,1.05113581,3313.9,3313.7,0.08148912]
[1736501943063,4.06838581,3314.3,3313.7,0.08148912]
[1736501943463,1.05113581,3314.2,3313.7,0.08148912]
[1736501944160,1.05113581,3314.0,3313.7,0.08148912]
[1736501944666,1.05113581,3313.8,3313.7,0.08148912]
[1736501946339,1.05113581,3314.0,3313.7,0.08148912]
[1736501946554,1.05113581,3313.8,3313.7,0.08148912]
[1736501946758,1.05113581,3313.8,3313.6,0.219]
[1736501946928,3.01777,3313.7,3313.6,0.219]
[1736501948030,3.01777,3313.7,3313.4,0.219]
[1736501948229,1.05113581,3313.5,3313.4,0.219]
[1736501949070,1.05113581,3313.7,3313.4,0.219]
[1736501949241,3.01763,3313.9,3313.4,0.219]
[1736501949444,1.05113581,3313.9,3313.4,0.219]
[1736501949834,1.05113581,3313.7,3313.4,0.219]
[1736501950285,4.06891581,3313.7,3313.4,0.219]
[1736501950769,1.05113581,3313.5,3313.4,0.219]
[1736501954858,1.05113581,3313.5,3313.4,0.30052124]
[1736501963387,1.05113581,3313.7,3313.4,0.30052124]
[1736501963972,4.06908581,3313.5,3313.4,0.08152124]
[1736501964201,3.01807,3313.4,3313.1,0.219]
[1736501964374,1.05113581,3313.2,3313.1,0.219]
[1736501964574,1.05113581,3313.4,3313.1,0.30086466]
[1736501964787,1.05113581,3313.4,3313.1,0.219]
[1736501965302,3.0,3313.8,3313.1,0.219]
[1736501965303,1.05113581,3313.8,3313.1,0.219]
[1736501965487,4.06881581,3313.8,3313.1,0.542745]
[1736501965691,1.05113581,3313.6,3313.2,0.08199231]
[1736501966572,1.05113581,3313.6,3313.1,0.219]
[1736501966765,1.05113581,3313.6,3313.2,0.08199231]
[1736501966989,1.05113581,3313.4,3313.2,0.08199231]
[1736501967401,4.06917581,3313.4,3313.2,0.08199231]
[1736501967608,3.01824,3313.2,3313.0,0.219]
[1736501967887,3.01824,3313.2,3312.0,0.81759295]
[1736501967888,3.0186,3312.8,3312.0,5.03979268]
[1736501968197,1.05113581,3312.3,3312.1,0.72297927]
[1736501968397,1.05113581,3312.3,3312.1,0.219]
[1736501969911,1.05113581,3312.3,3312.2,0.07975692]
[1736501970089,1.05113581,3312.5,3312.2,0.07975692]
[1736501972602,1.05113581,3312.3,3312.2,0.29875692]
[1736501972766,1.05113581,3312.3,3312.2,0.219]
[1736501975019,4.06984581,3312.7,3312.2,0.219]
[1736501975521,1.05113581,3312.5,3312.2,0.219]
[1736501976905,1.05113581,3312.3,3312.2,0.219]
[1736501977394,3.83066,3312.4,3312.2,0.219]
[1736501978300,3.01896,3312.4,3312.2,0.219]
[1736501979604,5.24179145,3312.6,3312.2,0.219]
[1736501981272,2.22299145,3312.6,3312.2,0.219]
[1736501981467,3.01898,3312.4,3312.2,0.219]
[1736501981922,5.24179145,3312.6,3312.2,0.219]
[1736501982077,3.01887,3312.5,3312.2,0.219]
[1736501984801,3.01887,3312.5,3312.3,0.08013832]
[1736501984975,3.01887,3312.5,3312.2,0.219]
[1736501985180,3.01887,3312.5,3312.3,0.08013832]
[1736501985378,3.01887,3312.5,3312.2,0.219]
[1736501985593,3.01887,3312.5,3312.3,0.08013832]
[1736501985791,3.01887,3312.5,3312.2,0.219]
[1736501986019,2.22299145,3312.6,3311.5,8.05955268]
[1736501986020,3.01905,3312.3,3311.5,5.03979268]
[1736501986215,5.24204145,3312.3,3312.1,0.219]
[1736501992687,3.01914,3312.2,3312.1,0.219]
[1736501993297,3.01914,3312.2,3311.3,3.01993]
[1736501993506,3.01881,3312.6,3310.8,8.06017268]
[1736501993507,2.22299145,3311.7,3310.8,8.06017268]
[1736501993819,5.24260145,3311.7,3310.9,0.219]
[1736501994024,5.24260145,3311.7,3311.0,0.6041829]
[1736501994221,2.98319145,3311.7,3311.0,0.6041829]
[1736501994423,2.22299145,3311.4,3311.0,0.07830363]
[1736501997437,2.22299145,3311.4,3311.1,0.219]
[1736501997639,3.01979,3311.5,3311.2,0.07855349]
[1736501997819,3.01979,3311.5,3311.1,0.219]
[1736501998147,3.01979,3311.5,3311.2,0.07855349]
[1736501998514,3.01979,3311.5,3311.1,0.219]
[1736501998844,3.01979,3311.5,3311.2,0.07855349]
[1736501999009,3.01979,3311.5,3311.1,0.219]
[1736501999205,3.01979,3311.5,3311.2,0.07855349]
[1736501999421,3.01979,3311.5,3311.1,0.219]
[1736501999622,3.01979,3311.5,3311.2,0.07855349]
[1736501999822,3.01979,3311.5,3311.1,0.219]
[1736502000022,3.01979,3311.5,3311.2,0.07855349]
[1736502000218,3.01979,3311.5,3311.1,0.219]
[1736502000465,3.01979,3311.5,3311.2,0.07855349]
[1736502000706,3.01979,3311.5,3311.1,0.219]
[1736502001152,3.01979,3311.5,3311.2,0.07855349]
[1736502001651,3.01979,3311.5,3311.1,0.219]
[1736502001816,3.01979,3311.5,3311.2,0.07855349]
[1736502002017,3.01979,3311.5,3311.1,0.219]
[1736502002352,3.01979,3311.5,3311.2,0.07855349]
[1736502002651,3.01979,3311.5,3311.1,0.219]
[1736502002851,3.01979,3311.5,3311.2,0.07855349]
[1736502003052,3.01979,3311.5,3311.1,0.219]
[1736502003274,3.01979,3311.5,3311.2,0.07855349]
[1736502003474,4.07254995,3311.5,3311.2,0.07855349]
[1736502003826,4.07254995,3311.5,3311.1,0.219]
[1736502004061,4.07254995,3311.5,3311.2,0.07895276]
[1736502004378,4.07254995,3311.5,3311.1,0.219]
[1736502004670,1.05275995,3311.5,3311.1,0.219]
[1736502005036,1.05275995,3311.5,3311.2,0.07895276]
[1736502006851,1.05275995,3311.3,3311.2,0.07895276]
[1736502009456,5.9215799,3311.3,3311.2,0.07895276]
[1736502009659,3.02023,3311.0,3310.9,0.219]
[1736502009960,5.1257499,3311.0,3310.9,0.219]
[1736502010212,4.07298995,3311.0,3310.9,0.219]
[1736502011388,5.24528458,3311.0,3310.9,0.219]
[1736502011973,5.24528458,3311.0,3310.5,5.03979268]
[1736502012177,3.02033,3310.9,3310.6,0.29301218]
[1736502012390,3.0,3311.1,3310.6,0.29301218]
[1736502012391,6.02017,3311.1,3310.6,0.29301218]
[1736502012593,5.24522458,3311.1,3310.6,0.29301218]
[1736502012828,2.22505458,3311.7,3310.7,3.05067674]
[1736502012972,3.01929,3312.1,3310.9,3.02032]
[1736502012973,3.01942,3311.9,3310.9,3.02032]
[1736502013172,3.01942,3311.9,3311.0,0.10411885]
[1736502013734,3.01942,3311.9,3311.0,0.07392075]
[1736502013941,3.01942,3311.9,3311.1,0.30942408]
[1736502014300,2.22505458,3311.7,3311.2,0.07389576]
[1736502014498,2.22505458,3311.4,3311.2,0.07389576]
[1736502014900,2.22505458,3311.4,3310.6,3.77287049]
[1736502015384,2.22505458,3311.4,3310.7,0.07382358]
[1736502015585,2.22505458,3311.4,3310.8,0.38466941]
[1736502015930,2.22505458,3311.4,3310.9,0.07377786]
[1736502018037,2.22505458,3311.4,3310.6,0.75228049]
[1736502018185,2.22505458,3311.4,3310.7,0.07382358]
[1736502019282,0.7512,3311.6,3310.7,0.07382358]
[1736502019507,0.7512,3311.6,3310.8,0.38466741]
[1736502019905,0.7512,3311.6,3310.9,0.07377786]
[1736502020150,5.24473458,3311.7,3310.9,0.07377786]
[1736502020959,3.01969,3311.6,3310.9,0.07377786]
[1736502021360,2.22505458,3311.4,3310.9,0.07377786]
[1736502021506,5.24495458,3311.4,3310.9,0.07377786]
[1736502021707,5.24495458,3311.4,3310.6,0.75228049]
[1736502021907,5.24495458,3311.4,3311.0,0.07376017]
[1736502022146,5.24495458,3311.4,3310.7,0.88127332]
[1736502022307,2.22505458,3311.4,3311.1,0.07373732]
[1736502022506,3.0197,3311.6,3310.7,0.88127332]
[1736502022736,3.0197,3311.6,3311.2,0.07371447]
[1736502022939,3.0197,3311.6,3310.7,0.88127332]
[1736502023141,3.0197,3311.6,3311.3,0.07369162]
[1736502023340,3.0197,3311.6,3310.7,0.88127332]
[1736502023544,3.0197,3311.6,3311.3,0.219]
[1736502025158,2.22505458,3312.0,3311.3,0.219]
[1736502025358,6.03871458,3312.3,3311.3,0.219]
[1736502025654,3.01965458,3312.3,3311.4,3.09353163]
[1736502025853,3.01965458,3312.3,3311.5,0.36144717]
[1736502026060,3.01965458,3312.3,3311.6,0.07370594]
[1736502026610,6.03875458,3312.3,3311.6,0.07370594]
[1736502027423,6.03875458,3312.3,3311.7,0.07368309]
[1736502027618,6.03875458,3312.3,3311.3,3.23887]
[1736502027817,5.24437458,3312.0,3311.4,0.07375163]
[1736502029023,2.22505458,3312.0,3311.4,0.03019839]
[1736502029371,3.01917,3312.2,3311.3,0.219]
[1736502029677,3.01965458,3312.3,3311.4,0.07354448]
[1736502029822,3.01965458,3312.3,3311.4,0.10373979]
[1736502030019,3.01965458,3312.3,3311.5,0.33426898]
[1736502030217,5.22505458,3312.3,3311.6,0.07349879]
[1736502030649,5.24411458,3312.3,3311.6,0.07349879]
[1736502030813,2.22505458,3312.3,3311.6,0.07349879]
[1736502031016,3.01918,3312.2,3311.3,0.219]
[1736502031218,3.01918,3312.2,3311.4,0.39726205]
[1736502031749,2.22505458,3312.0,3311.4,0.07335805]
[1736502032248,2.22505458,3312.0,3311.3,0.219]
[1736502032450,2.22505458,3312.0,3311.4,0.10903821]
[1736502033457,2.22505458,3312.0,3311.5,0.10901429]
[1736502033751,2.22505458,3312.0,3311.3,0.219]
[1736502033957,6.02723458,3312.3,3311.6,0.10899036]
[1736502034153,6.02723458,3312.3,3311.4,0.03019604]
[1736502034456,6.02723458,3312.3,3311.4,3.05006604]
[1736502034621,6.02723458,3312.3,3311.5,0.10901429]
[1736502034622,5.24444458,3312.0,3311.5,0.10901429]
[1736502034825,5.24444458,3312.0,3311.3,0.219]
[1736502035026,5.24444458,3312.0,3311.4,0.10903821]
[1736502035229,2.22505458,3312.0,3311.3,0.219]
[1736502035453,3.01943,3311.9,3311.4,0.10903821]
[1736502035648,3.01943,3311.9,3311.3,0.219]
[1736502035863,3.01943,3311.9,3311.4,0.1090641]
[1736502036064,3.01943,3311.9,3311.3,0.219]
[1736502036238,3.01943,3311.9,3311.4,0.1090641]
[1736502036424,3.01943,3311.9,3311.3,0.219]
[1736502036624,3.01943,3311.9,3311.4,0.10909517]
[1736502036825,3.01943,3311.9,3311.3,0.219]
[1736502037060,3.01943,3311.9,3311.4,0.10909517]
[1736502037235,3.01943,3311.9,3311.3,0.219]
[1736502037435,3.01943,3311.9,3311.4,0.10909517]
[1736502037632,3.01943,3311.9,3311.3,0.219]
[1736502037839,3.01943,3311.9,3311.4,0.10909517]
[1736502038158,3.01943,3311.9,3311.3,0.219]
[1736502038383,3.01943,3311.9,3310.9,3.02023]
[1736502038587,0.8143,3311.8,3311.4,0.10909517]
[1736502038789,3.01943,3311.9,3311.0,0.55022181]
[1736502038959,3.03935458,3312.0,3311.0,0.55022181]
[1736502039168,11.37905458,3312.3,3311.2,0.0075]
[1736502039378,14.39810458,3312.3,3311.3,3.01994]
[1736502039594,3.01923,3312.1,3311.3,0.10911392]
[1736502039758,3.01942,3311.9,3311.3,0.10911392]
[1736502040092,3.80351,3311.8,3311.0,0.218]
[1736502040296,3.80351,3311.8,3311.1,0.10913589]
[1736502042055,5.24471458,3311.7,3311.1,0.10913589]
[1736502042250,3.01969,3311.6,3311.2,0.218]
[1736502042455,3.01969,3311.6,3311.3,0.10896896]
[1736502042681,2.22505458,3311.7,3310.6,3.02055]
[1736502042994,2.22505458,3311.4,3310.7,0.62916756]
[1736502043858,2.22505458,3311.1,3310.7,0.10911256]
[1736502044063,3.02023,3311.0,3310.8,0.218]
[1736502046495,0.7843,3311.2,3310.8,0.218]
[1736502046701,3.02017,3311.1,3310.8,0.218]
[1736502047918,3.02026,3311.0,3310.8,0.218]
[1736502048415,5.24537458,3310.9,3310.8,0.218]
[1736502049017,5.24537458,3310.9,3309.9,3.02122]
[1736502049214,5.24537458,3310.9,3310.5,0.218]
[1736502049630,5.24537458,3310.9,3310.6,0.10921934]
[1736502050319,5.37,3311.3,3310.6,0.10921934]
[1736502050686,3.79514,3311.9,3310.8,3.0204]
[1736502050995,2.22505458,3312.0,3311.1,3.02013]
[1736502051314,2.22505458,3312.0,3311.2,0.41108874]
[1736502051814,2.22505458,3312.0,3311.3,0.10905181]
[1736502052013,2.22505458,3312.0,3311.4,0.218]
[1736502052416,5.22505458,3312.0,3311.5,0.10900396]
[1736502052617,2.22505458,3312.0,3311.5,0.10900396]
[1736502052795,2.22505458,3312.0,3311.4,0.218]
[1736502053113,2.22505458,3312.3,3311.5,3.15893996]
[1736502054146,5.24389458,3312.6,3311.5,3.15893996]